fUST/lending_fUST_20251113
["ID","MTS","AMOUNT","RATE_DAILY","PERIOD"]
[393851609,1763042632525,-1010.71,0.00044383,120]
[393851610,1763042632562,-500.0,0.00044383,120]
[393851611,1763042632738,-625.13821917,0.00044383,120]
[393851612,1763042632776,-500.0,0.00044383,120]
[393851613,1763042632814,-919.31,0.00044383,120]
[393851614,1763042632850,-665.88,0.00044383,120]
[393851615,1763042632884,-500.0,0.00044383,120]
[393851616,1763042632919,-500.0,0.00044383,120]
[393851617,1763042632954,-500.0,0.00044383,120]
[393851618,1763042632990,-505.010701,0.00044383,120]
[393851619,1763042633028,-525.2,0.00044383,120]
[393851620,1763042633066,-500.0,0.00044383,120]
[393851621,1763042633102,-500.0,0.00044383,120]
[393851622,1763042633139,-500.0,0.00044383,120]
[393851623,1763042633177,-626.58,0.00044383,120]
[393851624,1763042633214,-500.0,0.00044383,120]
[393851625,1763042633250,-500.0,0.00044383,120]
[393851626,1763042633286,-500.0,0.00044383,120]
[393851627,1763042633323,-500.0,0.00044383,120]
[393851628,1763042633359,-937.08,0.00044383,120]
[393851629,1763042633399,-500.0,0.00044383,120]
[393851630,1763042633433,-500.0,0.00044383,120]
[393851631,1763042633472,-500.0,0.00044383,120]
[393851632,1763042633507,-1371.44,0.00044383,120]
[393851633,1763042633544,-500.0,0.00044383,120]
[393851634,1763042633581,-267.83534899,0.00044383,120]
[393851635,1763042633617,-500.0,0.00044383,120]
[393851636,1763042633653,-1061.56,0.00044383,120]
[393851637,1763042633690,-428.17596672,0.00044383,120]
[393851638,1763042633726,-508.06,0.00044383,120]
[393851639,1763042633762,-500.0,0.00044383,120]
[393851640,1763042633801,-500.0,0.00044383,120]
[393851641,1763042633840,-500.0,0.00044383,120]
[393851642,1763042633881,-500.0,0.00044383,120]
[393851643,1763042633921,-500.0,0.00044383,120]
[393851644,1763042633961,-500.0,0.00044383,120]
[393851645,1763042633999,-500.0,0.00044383,120]
[393851646,1763042634039,-500.0,0.00044383,120]
[393851647,1763042634080,-595.51031216,0.00044383,120]
[393851648,1763042634121,-711.84,0.00044383,120]
[393851649,1763042634160,-500.0,0.00044383,120]
[393851650,1763042634198,-515.51768645,0.00044383,120]
[393851651,1763042634235,-500.0,0.00044383,120]
[393851652,1763042634270,-500.0,0.00044383,120]
[393851653,1763042634305,-553.60084383,0.00044383,120]
[393851654,1763042634340,-1339.15,0.00044383,120]
[393851655,1763042634374,-256.1155065,0.00044383,120]
[393851656,1763042634410,-641.46,0.00044383,120]
[393851657,1763042634444,-500.0,0.00044383,120]
[393851658,1763042634479,-500.0,0.00044383,120]
[393851659,1763042634513,-685.65,0.00044383,120]
[393851660,1763042634549,-884.49,0.00044383,120]
[393851661,1763042634584,-500.0,0.00044383,120]
[393851662,1763042634624,-653.87,0.00044383,120]
[393851663,1763042634662,-500.0,0.00044383,120]
[393851664,1763042634700,-500.0,0.00044383,120]
[393851665,1763042634740,-500.0,0.00044383,120]
[393851666,1763042634781,-701.4,0.00044383,120]
[393851667,1763042634822,-500.0,0.00044383,120]
[393851668,1763042634862,-962.83,0.00044383,120]
[393851669,1763042634902,-1088.25,0.00044383,120]
[393851670,1763042634946,-500.0,0.00044383,120]
[393851671,1763042634988,-518.11083007,0.00044383,120]
[393851672,1763042635028,-500.0,0.00044383,120]
[393851673,1763042635067,-500.0,0.00044383,120]
[393851674,1763042635103,-500.0,0.00044383,120]
[393851675,1763042635143,-620.52,0.00044383,120]
[393851676,1763042635181,-500.0,0.00044383,120]
[393851677,1763042635218,-500.0,0.00044383,120]
[393851678,1763042635254,-500.0,0.00044383,120]
[393851679,1763042635291,-1042.32,0.00044383,120]
[393851680,1763042635329,-764.26,0.00044383,120]
[393851681,1763042635370,-553.0,0.00044383,120]
[393851682,1763042635406,-696.45,0.00044383,120]
[393851683,1763042635444,-500.0,0.00044383,120]
[393851684,1763042635479,-228.22,0.00044383,120]
[393851685,1763042635516,-506.21762847,0.00044383,120]
[393851686,1763042635551,-500.0,0.00044383,120]
[393851687,1763042635586,-500.0,0.00044383,120]
[393851688,1763042635620,-615.12,0.00044383,120]
[393851689,1763042635655,-542.97,0.00044383,120]
[393851690,1763042635690,-500.0,0.00044383,120]
[393851691,1763042635726,-194.62243,0.00044383,120]
[393851692,1763042635761,-500.0,0.00044383,120]
[393851693,1763042635798,-520.45078044,0.00044383,120]
[393851694,1763042635836,-500.0,0.00044383,120]
[393851695,1763042635873,-896.76,0.00044383,120]
[393851696,1763042635910,-500.0,0.00044383,120]
[393851697,1763042635945,-1001.97,0.00044383,120]
[393851698,1763042635981,-500.0,0.00044383,120]
[393851699,1763042636017,-500.0,0.00044383,120]
[393851700,1763042636053,-502.61,0.00044383,120]
[393851701,1763042636093,-500.0,0.00044383,120]
[393851702,1763042636130,-500.0,0.00044383,120]
[393851703,1763042636165,-500.0,0.00044383,120]
[393851704,1763042636200,-756.91,0.00044383,120]
[393851705,1763042636236,-500.0,0.00044383,120]
[393851706,1763042636271,-500.0,0.00044383,120]
[393851707,1763042636304,-801.27,0.00044383,120]
[393851708,1763042636339,-550.52,0.00044383,120]
[393851709,1763042636375,-286.31581246,0.00044383,120]
[393851710,1763042636411,-1685.58,0.00044383,120]
[393851711,1763042636446,-500.0,0.00044383,120]
[393851712,1763042636490,-500.0,0.00044383,120]
[393851713,1763042636524,-500.0,0.00044383,120]
[393851714,1763042636685,-500.0,0.00044383,120]
[393851715,1763042636732,-528.14096666,0.00044383,120]
[393851716,1763042636769,-500.0,0.00044383,120]
[393851717,1763042636807,-672.23,0.00044383,120]
[393851718,1763042636847,-500.0,0.00044383,120]
[393851719,1763042636886,-500.0,0.00044383,120]
[393851720,1763042636923,-500.0,0.00044383,120]
[393851721,1763042636959,-1315.58,0.00044383,120]
[393851722,1763042636996,-500.0,0.00044383,120]
[393851723,1763042637033,-500.0,0.00044383,120]
[393851724,1763042637070,-500.0,0.00044383,120]
[393851725,1763042637107,-500.0,0.00044383,120]
[393851726,1763042637143,-500.0,0.00044383,120]
[393851727,1763042637178,-500.0,0.00044383,120]
[393851728,1763042637214,-500.0,0.00044383,120]
[393851729,1763042637251,-672.3,0.00044383,120]
[393851730,1763042637288,-500.0,0.00044383,120]
[393851731,1763042637326,-500.0,0.00044383,120]
[393851732,1763042637365,-500.0,0.00044383,120]
[393851733,1763042637403,-592.17561429,0.00044383,120]
[393851734,1763042637439,-512.71,0.00044383,120]
[393851735,1763042637475,-625.62717079,0.00044383,10]
[393851736,1763042637513,-500.0,0.00044383,30]
[393851737,1763042637552,-506.99,0.00044383,120]
[393851738,1763042637587,-500.0,0.00044383,120]
[393851739,1763042637622,-572.46,0.00044383,120]
[393851740,1763042637656,-500.0,0.00044383,120]
[393851741,1763042637691,-500.0,0.00044383,120]
[393851742,1763042637726,-500.0,0.00044383,120]
[393851743,1763042637763,-500.0,0.00044383,120]
[393851744,1763042637802,-466.10193769,0.00044383,120]
[393851745,1763042637837,-500.0,0.00044383,14]
[393851746,1763042637878,-500.0,0.00044383,120]
[393851747,1763042637924,-586.37,0.00044383,120]
[393851748,1763042637971,-1694.9,0.00044383,120]
[393851749,1763042638017,-500.0,0.00044383,120]
[393851750,1763042638062,-245.49575267,0.00044383,120]
[393851751,1763042638100,-356.59271695,0.00044383,120]
[393851752,1763042638137,-500.0,0.00044383,120]
[393851753,1763042638176,-500.0,0.00044383,120]
[393851754,1763042638213,-500.0,0.00044383,120]
[393851755,1763042638249,-500.0,0.00044383,120]
[393851756,1763042638285,-676.52,0.00044383,120]
[393851757,1763042638323,-500.0,0.00044383,120]
[393851758,1763042638359,-500.0,0.00044383,120]
[393851759,1763042638397,-584.2,0.00044383,120]
[393851760,1763042638432,-190.43376373,0.00044383,120]
[393851761,1763042638467,-591.89,0.00044383,120]
[393851762,1763042638501,-500.0,0.00044383,120]
[393851763,1763042638536,-500.0,0.00044383,120]
[393851764,1763042638572,-500.0,0.00044383,120]
[393851765,1763042638607,-500.0,0.00044383,120]
[393851766,1763042638641,-346.62159579,0.00044383,120]
[393851767,1763042638674,-500.0,0.00044383,120]
[393851768,1763042638707,-500.0,0.00044383,120]
[393851769,1763042638741,-587.54138528,0.00044383,120]
[393851770,1763042638777,-500.0,0.00044383,120]
[393851771,1763042638813,-500.0,0.00044383,120]
[393851772,1763042638848,-968.8,0.00044383,120]
[393851773,1763042638884,-500.11,0.00044383,120]
[393851774,1763042638921,-632.9,0.00044383,120]
[393851775,1763042638960,-500.0,0.00044383,120]
[393851776,1763042639002,-500.0,0.00044383,120]
[393851777,1763042639041,-296.5713927,0.00044383,120]
[393851778,1763042639082,-500.0,0.00044383,120]
[393851779,1763042639118,-771.64,0.00044383,120]
[393851780,1763042639153,-500.0,0.00044383,60]
[393851781,1763042639187,-500.0,0.00044383,120]
[393851782,1763042639221,-500.0,0.00044383,120]
[393851783,1763042639256,-793.67,0.00044383,120]
[393851784,1763042639291,-500.0,0.00044383,120]
[393851785,1763042639328,-500.0,0.00044383,120]
[393851786,1763042639363,-500.0,0.00044383,30]
[393851787,1763042639402,-500.0,0.00044383,120]
[393851788,1763042639439,-568.65275188,0.00044383,120]
[393851789,1763042639472,-500.0,0.00044383,120]
[393851790,1763042639505,-500.0,0.00044383,120]
[393851791,1763042639543,-500.0,0.00044383,120]
[393851792,1763042639582,-500.0,0.00044383,120]
[393851793,1763042639620,-500.0,0.00044383,120]
[393851794,1763042639658,-500.0,0.00044383,120]
[393851795,1763042639697,-500.0,0.00044383,120]
[393851796,1763042639738,-500.0,0.00044383,120]
[393851797,1763042639778,-500.0,0.00044383,120]
[393851798,1763042639818,-500.0,0.00044383,120]
[393851799,1763042639857,-657.17,0.00044383,120]
[393851800,1763042639895,-500.0,0.00044383,120]
[393851801,1763042639935,-500.0,0.00044383,120]
[393851802,1763042639973,-500.0,0.00044383,120]
[393851803,1763042640010,-500.0,0.00044383,120]
[393851804,1763042640051,-583.66,0.00044383,120]
[393851805,1763042640089,-500.0,0.00044383,120]
[393851806,1763042640129,-500.0,0.00044383,120]
[393851807,1763042640168,-729.55,0.00044383,120]
[393851808,1763042640207,-500.0,0.00044383,120]
[393851809,1763042640247,-500.0,0.00044383,120]
[393851810,1763042640285,-500.0,0.00044383,120]
[393851811,1763042640325,-500.0,0.00044383,120]
[393851812,1763042640367,-708.19,0.00044383,120]
[393851813,1763042640407,-500.0,0.00044383,120]
[393851814,1763042640445,-500.0,0.00044383,120]
[393851815,1763042640483,-500.0,0.00044383,120]
[393851816,1763042640519,-608.52,0.00044383,120]
[393851817,1763042640556,-858.54,0.00044383,120]
[393851818,1763042640734,-896.72,0.00044383,120]
[393851819,1763042640773,-622.73,0.00044383,120]
[393851820,1763042640813,-984.89,0.00044383,120]
[393851821,1763042640852,-500.0,0.00044383,120]
[393851822,1763042640891,-506.1,0.00044383,120]
[393851823,1763042640929,-500.0,0.00044383,120]
[393851824,1763042640968,-500.0,0.00044383,120]
[393851825,1763042641008,-500.0,0.00044383,120]
[393851826,1763042641047,-500.0,0.00044383,120]
[393851827,1763042641089,-500.0,0.00044383,120]
[393851828,1763042641127,-639.31,0.00044383,120]
[393851829,1763042641165,-1180.85,0.00044383,120]
[393851830,1763042641202,-228.16535412,0.00044383,120]
[393851831,1763042641240,-1259.2,0.00044383,120]
[393851832,1763042641277,-500.0,0.00044383,120]
[393851833,1763042641314,-500.0,0.00044383,120]
[393851834,1763042641352,-500.0,0.00044383,120]
[393851835,1763042641393,-500.0,0.00044383,120]
[393851836,1763042641431,-760.26,0.00044383,120]
[393851837,1763042641471,-500.0,0.00044383,120]
[393851838,1763042641506,-517.95433544,0.00044383,120]
[393851839,1763042641544,-1181.14,0.00044383,120]
[393851840,1763042641586,-712.73,0.00044383,30]
[393851841,1763042641624,-500.0,0.00044383,120]
[393851842,1763042641662,-500.0,0.00044383,120]
[393851843,1763042641700,-607.31,0.00044383,120]
[393851844,1763042641739,-568.16,0.00044383,21]
[393851845,1763042641777,-500.0,0.00044383,120]
[393851846,1763042641816,-576.29,0.00044383,120]
[393851847,1763042641858,-244.0908873,0.00044383,120]
[393851848,1763042641900,-500.0,0.00044383,120]
[393851849,1763042641942,-1386.31,0.00044383,120]
[393851850,1763042641983,-1589.92,0.00044383,120]
[393851851,1763042642023,-814.78,0.00044383,120]
[393851852,1763042642065,-500.0,0.00044383,120]
[393851853,1763042642105,-1920.4,0.00044383,120]
[393851854,1763042642144,-500.0,0.00044383,120]
[393851855,1763042642186,-500.0,0.00044383,120]
[393851856,1763042642225,-624.56,0.00044383,120]
[393851857,1763042642263,-500.0,0.00044383,120]
[393851858,1763042642301,-500.0,0.00044383,120]
[393851859,1763042642343,-500.0,0.00044383,120]
[393851860,1763042642383,-500.0,0.00044383,120]
[393851861,1763042642418,-500.0,0.00044383,120]
[393851862,1763042642455,-500.0,0.00044383,120]
[393851863,1763042642489,-500.0,0.00044383,120]
[393851864,1763042642524,-500.0,0.00044383,120]
[393851865,1763042642562,-785.4,0.00044383,120]
[393851866,1763042642597,-500.0,0.00044383,120]
[393851867,1763042642632,-1381.89,0.00044383,120]
[393851868,1763042642668,-500.0,0.00044383,120]
[393851869,1763042642703,-500.0,0.00044383,120]
[393851870,1763042642739,-1394.31,0.00044383,120]
[393851871,1763042642776,-1115.37,0.00044383,120]
[393851872,1763042642815,-500.0,0.00044383,120]
[393851873,1763042642853,-327.14505357,0.00044383,120]
[393851874,1763042658710,-776.67,0.00043835,120]
[393851875,1763042658753,-1022.75,0.00043835,120]
[393851876,1763042658796,-500.0,0.00043835,120]
[393851877,1763042658834,-415.27330909,0.00043835,120]
[393851878,1763042658872,-1561.33,0.00043835,120]
[393851879,1763042658912,-500.0,0.00043835,120]
[393851880,1763042658952,-536.06,0.00043835,120]
[393851881,1763042658992,-500.0,0.00043835,120]
[393851882,1763042659030,-500.0,0.00043835,120]
[393851883,1763042659069,-538.23,0.00043835,120]
[393851884,1763042659108,-520.75734094,0.00043835,120]
[393851885,1763042659144,-500.0,0.00043835,120]
[393851886,1763042659180,-500.0,0.00043835,120]
[393851887,1763042659217,-500.0,0.00043835,120]
[393851888,1763042659254,-688.99,0.00043835,120]
[393851889,1763042659293,-546.49,0.00043835,120]
[393851890,1763042659330,-500.0,0.00043835,120]
[393851891,1763042659372,-1220.02,0.00043835,120]
[393851892,1763042659411,-776.67,0.00044109,120]
[393851893,1763042659448,-1022.75,0.00044109,120]
[393851894,1763042659483,-500.0,0.00044109,120]
[393851895,1763042659520,-1561.33,0.00044109,120]
[393851896,1763042659557,-500.0,0.00044109,120]
[393851897,1763042659594,-536.06,0.00044109,120]
[393851898,1763042659799,-500.0,0.00044109,120]
[393851899,1763042659844,-555.70275054,0.00044109,120]
[393851900,1763042659885,-538.23,0.00044109,120]
[393851901,1763042659925,-500.0,0.00044109,120]
[393851902,1763042659965,-500.0,0.00044109,120]
[393851903,1763042660006,-514.37436906,0.00044109,120]
[393851904,1763042660048,-688.99,0.00044109,120]
[393851905,1763042660090,-546.49,0.00044109,120]
[393851906,1763042660126,-426.99800988,0.00044109,120]
[393851907,1763042660165,-1220.02,0.00044109,120]
[393851908,1763042660204,-2255.06,0.000442,14]
[393851909,1763042660242,-500.0,0.00044373,10]
[393851910,1763042660279,-172.85494643,0.00044383,120]
[393851911,1763042660316,-500.0,0.00044383,120]
[393851912,1763042660355,-1151.15,0.00044383,120]
[393851913,1763042660395,-500.0,0.00044383,120]
[393851914,1763042660437,-500.0,0.00044383,120]
[393851915,1763042660478,-500.0,0.00044383,120]
[393851916,1763042660513,-500.0,0.00044383,120]
[393851917,1763042660549,-500.0,0.00044383,120]
[393851918,1763042660584,-500.0,0.00044383,120]
[393851919,1763042660619,-727.84,0.00044383,120]
[393851920,1763042660654,-500.0,0.00044383,120]
[393851921,1763042660689,-525.09,0.00044383,120]
[393851922,1763042660724,-679.3,0.00044383,120]
[393851923,1763042660761,-1392.98,0.00044383,120]
[393851924,1763042660797,-385.67840224,0.00044383,120]
[393851925,1763042660835,-696.3,0.00044383,120]
[393851926,1763042660872,-500.0,0.00044383,120]
[393851927,1763042660908,-500.0,0.00044383,120]
[393851928,1763042660947,-500.0,0.00044383,120]
[393851929,1763042660985,-626.93,0.00044383,120]
[393851930,1763042661024,-500.0,0.00044383,120]
[393851931,1763042661065,-500.0,0.00044383,120]
[393851932,1763042661104,-500.0,0.00044383,120]
[393851933,1763042661143,-834.05,0.00044383,120]
[393851934,1763042661180,-1091.12,0.00044383,120]
[393851935,1763042661218,-500.0,0.00044383,120]
[393851936,1763042661253,-500.0,0.00044383,120]
[393851937,1763042661290,-500.0,0.00044383,120]
[393851938,1763042661327,-500.0,0.00044383,120]
[393851939,1763042661364,-720.82,0.00044383,120]
[393851940,1763042661407,-1237.59,0.00044383,120]
[393851941,1763042661445,-500.0,0.00044383,120]
[393851942,1763042661481,-500.0,0.00044383,120]
[393851943,1763042661516,-874.82,0.00044383,120]
[393851944,1763042661551,-665.91,0.00044383,120]
[393851945,1763042661588,-500.0,0.00044383,120]
[393851946,1763042661624,-500.0,0.00044383,120]
[393851947,1763042661664,-500.0,0.00044383,120]
[393851948,1763042661702,-1758.13,0.00044383,120]
[393851949,1763042661739,-500.0,0.00044383,120]
[393851950,1763042661775,-1506.33,0.00044383,120]
[393851951,1763042661813,-500.0,0.00044383,120]
[393851952,1763042661855,-500.0,0.00044383,120]
[393851953,1763042661895,-500.0,0.00044383,120]
[393851954,1763042661938,-12286.84,0.00044383,120]
[393851955,1763042661976,-500.0,0.00044383,120]
[393851956,1763042662015,-500.0,0.00044383,120]
[393851957,1763042662056,-594.76,0.00044383,120]
[393851958,1763042662094,-500.0,0.00044383,120]
[393851959,1763042662133,-500.0,0.00044383,120]
[393851960,1763042662172,-500.0,0.00044383,120]
[393851961,1763042662209,-500.0,0.00044383,120]
[393851962,1763042662247,-911.25,0.00044383,120]
[393851963,1763042662286,-907.41,0.00044383,120]
[393851964,1763042662325,-634.88,0.00044383,120]
[393851965,1763042662367,-670.25,0.00044383,120]
[393851966,1763042662409,-500.0,0.00044383,120]
[393851967,1763042662447,-500.0,0.00044383,120]
[393851968,1763042662485,-599.73,0.00044383,120]
[393851969,1763042662521,-1030.73,0.00044383,120]
[393851970,1763042662558,-884.45,0.00044383,120]
[393851971,1763042662594,-798.59,0.00044383,120]
[393851972,1763042662630,-558.57,0.00044383,120]
[393851973,1763042662665,-500.0,0.00044383,120]
[393851974,1763042662700,-1317.11,0.00044383,120]
[393851975,1763042662735,-747.97,0.00044383,120]
[393851976,1763042662770,-500.0,0.00044383,120]
[393851977,1763042662807,-1114.44,0.00044383,120]
[393851978,1763042662843,-500.0,0.00044383,120]
[393851979,1763042662880,-505.5024262,0.00044383,120]
[393851980,1763042662916,-500.0,0.00044383,120]
[393851981,1763042662954,-1069.09,0.00044383,120]
[393851982,1763042662991,-502.51,0.00044383,120]
[393851983,1763042663031,-500.0,0.00044383,120]
[393851984,1763042663069,-500.0,0.00044383,120]
[393851985,1763042663111,-500.0,0.00044383,120]
[393851986,1763042663149,-500.0,0.00044383,120]
[393851987,1763042663187,-699.72,0.00044383,120]
[393851988,1763042663224,-541.83958065,0.00044383,120]
[393851989,1763042663261,-1075.09,0.00044383,120]
[393851990,1763042663299,-2805.19,0.00044383,120]
[393851991,1763042663337,-500.0,0.00044383,120]
[393851992,1763042663374,-1116.74,0.00044383,120]
[393851993,1763042663414,-979.56,0.00044383,120]
[393851994,1763042663453,-500.0,0.00044383,120]
[393851995,1763042663492,-500.0,0.00044383,120]
[393851996,1763042663534,-500.0,0.00044383,120]
[393851997,1763042663582,-500.0,0.00044383,120]
[393851998,1763042663786,-909.44,0.00044383,120]
[393851999,1763042663831,-500.0,0.00044383,120]
[393852000,1763042663879,-705.35,0.00044383,120]
[393852001,1763042663920,-500.0,0.00044383,120]
[393852002,1763042663962,-1212.63,0.00044383,120]
[393852003,1763042664002,-500.0,0.00044383,120]
[393852004,1763042664041,-500.0,0.00044383,120]
[393852005,1763042664080,-500.0,0.00044383,120]
[393852006,1763042664121,-551.77,0.00044383,120]
[393852007,1763042664164,-515.58043485,0.00044383,120]
[393852008,1763042664207,-955.96,0.00044383,120]
[393852009,1763042664250,-500.0,0.00044383,120]
[393852010,1763042664291,-500.0,0.00044383,120]
[393852011,1763042664337,-981.83,0.00044383,120]
[393852012,1763042664381,-500.0,0.00044383,120]
[393852013,1763042664425,-1456.37,0.00044383,120]
[393852014,1763042664464,-513.59,0.00044383,120]
[393852015,1763042664503,-589.74,0.00044383,120]
[393852016,1763042664552,-959.05,0.00044383,120]
[393852017,1763042664597,-500.0,0.00044383,120]
[393852018,1763042664639,-1352.7,0.00044383,120]
[393852019,1763042664682,-500.0,0.00044383,120]
[393852020,1763042664722,-2622.35,0.00044383,120]
[393852021,1763042664765,-500.0,0.00044383,120]
[393852022,1763042664808,-605.44,0.00044383,120]
[393852023,1763042664851,-500.0,0.00044383,120]
[393852024,1763042664894,-956.73,0.00044383,120]
[393852025,1763042664937,-500.0,0.00044383,120]
[393852026,1763042664980,-500.0,0.00044383,120]
[393852027,1763042665023,-500.0,0.00044383,120]
[393852028,1763042665064,-398.99978711,0.00044383,120]
[393852029,1763042665108,-500.0,0.00044383,120]
[393852030,1763042665150,-848.55,0.00044383,120]
[393852031,1763042665190,-500.0,0.00044383,60]
[393852032,1763042665229,-500.0,0.00044383,120]
[393852033,1763042665269,-1257.89,0.00044383,120]
[393852034,1763042665309,-231.81045776,0.00044383,120]
[393852035,1763042665350,-567.9,0.00044383,120]
[393852036,1763042665390,-500.0,0.00044383,120]
[393852037,1763042665429,-856.39,0.00044383,120]
[393852038,1763042665468,-500.0,0.00044383,10]
[393852039,1763042665507,-500.0,0.00044383,120]
[393852040,1763042665546,-1196.74,0.00044383,120]
[393852041,1763042665587,-500.0,0.00044383,120]
[393852042,1763042665626,-887.63,0.00044383,120]
[393852043,1763042665666,-500.0,0.00044383,120]
[393852044,1763042665703,-500.0,0.00044383,120]
[393852045,1763042665740,-500.0,0.00044383,120]
[393852046,1763042665780,-500.0,0.00044383,120]
[393852047,1763042665819,-776.67,0.00044383,120]
[393852048,1763042665860,-1022.75,0.00044383,120]
[393852049,1763042665903,-500.0,0.00044383,120]
[393852050,1763042665944,-1561.33,0.00044383,120]
[393852051,1763042665985,-500.0,0.00044383,120]
[393852052,1763042666025,-536.06,0.00044383,120]
[393852053,1763042666067,-500.0,0.00044383,120]
[393852054,1763042666115,-538.23,0.00044383,120]
[393852055,1763042666157,-500.0,0.00044383,120]
[393852056,1763042666197,-500.0,0.00044383,120]
[393852057,1763042666240,-688.99,0.00044383,120]
[393852058,1763042666280,-546.49,0.00044383,120]
[393852059,1763042666321,-1220.02,0.00044383,120]
[393852060,1763042666366,-370.1,0.000444,14]
[393852061,1763042666415,-193.0,0.00044434,120]
[393852062,1763042666456,-164.01680585,0.00044466,30]
[393852063,1763042666496,-564.25882941,0.0004465,30]
[393852064,1763042666537,-460.0,0.00044657,120]
[393852065,1763042666576,-185.37911794,0.00044657,120]
[393852066,1763042666616,-500.0,0.00044657,120]
[393852067,1763042666657,-500.0,0.00044657,120]
[393852068,1763042666697,-500.0,0.00044657,120]
[393852069,1763042666738,-221.50190868,0.00044657,120]
[393852070,1763042666780,-500.0,0.00044657,120]
[393852071,1763042666822,-500.0,0.00044657,120]
[393852072,1763042666863,-500.0,0.00044657,120]
[393852073,1763042666903,-520.35884222,0.00044657,120]
[393852074,1763042666948,-500.0,0.00044657,120]
[393852075,1763042666988,-500.0,0.00044657,120]
[393852076,1763042667028,-303.10785081,0.00044657,120]
[393852077,1763042667069,-522.15413291,0.00044657,120]
[393852078,1763042667115,-427.14553794,0.00044657,120]
[393852079,1763042667161,-353.79920909,0.00044657,120]
[393852080,1763042667205,-500.0,0.00044657,120]
[393852081,1763042667249,-500.0,0.00044657,120]
[393852082,1763042667292,-500.0,0.00044657,120]
[393852083,1763042667335,-500.0,0.00044657,120]
[393852084,1763042667378,-502.83468836,0.00044657,120]
[393852085,1763042667419,-500.0,0.00044657,120]
[393852086,1763042667459,-177.5453823,0.00044657,120]
[393852087,1763042667498,-579.83,0.00044657,120]
[393852088,1763042667537,-753.63,0.00044657,120]
[393852089,1763042667577,-500.0,0.00044657,120]
[393852090,1763042667619,-654.26,0.00044657,120]
[393852091,1763042667658,-607.36,0.00044657,120]
[393852092,1763042667699,-500.0,0.00044657,120]
[393852093,1763042667739,-500.0,0.00044657,120]
[393852094,1763042667779,-500.0,0.00044657,120]
[393852095,1763042667821,-500.0,0.00044657,120]
[393852096,1763042667863,-500.0,0.00044657,120]
[393852097,1763042667903,-500.0,0.00044657,120]
[393852098,1763042667946,-563.05,0.00044657,120]
[393852099,1763042667987,-603.97764121,0.00044657,120]
[393852100,1763042668028,-500.0,0.00044657,120]
[393852101,1763042668239,-473.8082533,0.00044657,120]
[393852102,1763042668281,-991.0,0.00044657,120]
[393852103,1763042668320,-500.0,0.00044657,120]
[393852104,1763042668361,-500.0,0.00044657,120]
[393852105,1763042668403,-500.0,0.00044657,120]
[393852106,1763042668443,-1017.65,0.00044657,120]
[393852107,1763042668484,-500.0,0.00044657,120]
[393852108,1763042668522,-290.45331572,0.00044657,120]